Workbook

Sheet 2025 Finanacials
C1: Name: | D1: 2120 4th Ave 4Plex | I1: ANNUAL PROPERTY OPERATING DATA
C2: Location: | D2: 2120 4th Ave, Marion, IA, 52302 | I2: Date:
B3: Type of Property: | C3: Multi-Family Property | H3: Purchase Price: | J3: 260000
C4: Size of Property: # Units: 4 | H4: Cost of Acquisition: | J4: 0
B5: Purpose: | C5: Owner's Statement | E5: Broker's Reconstructed | H5: Pricer Per Unit | J5: =J3/4 -> 65000
C6: Existing Financing | E6: Potential Financing | H6: Down Payment: 25% | J6: =J3*0.25 -> 65000
C7: Seller's Position | E7: Buyer's Position
C8: Forecast
B10: Existing | C10: Balance | D10: Payment | E10: #Pmts/Yr | F10: Interest | G10: Term
B11: 1st | J11: Dwelling Value
B12: 2nd | I12: Improvement
B13: 3rd
C14: Potential: | I14: TOTAL | K14: 1
B15: 1st
B16: 2nd
E17: $/sf or | G17: %
B18: ALL FIGURES ANNUAL | C18: $/unit | E18: of GOI | H18: Comments/Footnotes
A19: 1 | B19: POTENTIAL RENTAL INCOME | E19: 31020 | H19: Rents currently at $650, $675, $675, $585
A20: 2 | B20: Less: Vacancy & Cr Losses | E20: 0
A21: 3 | B21: EFFECTIVE RENTAL INCOME | E21: =E19-E20 -> 31020
A22: 4 | B22: Plus: Other Income | E22: 916 | G22: Laundry and water/trash RUB
A23: 5 | B23: GROSS OPERATING INCOME | E23: =E21+E22 -> 31936
B24: OPERATING EXPENSES:
A25: 6 | B25: Real Estate Taxes | E25: 3636
A26: 7 | B26: Personal Property Taxes
A27: 8 | B27: Property Insurance | E27: 2090
A28: 9 | B28: Off-site Management | E28: 1861
A29: 10 | B29: Management
A30: 11 | B30: Expenses / Benefits
A31: 12 | B31: Taxes / Workers' Comp
A32: 13 | B32: Repairs and Maintenance | E32: 3244
B33: Utilities
A34: 14 | B34: Electric | E34: 961 | G34: Owner pays common electric.
A35: 15 | B35: Gas | E35: 0 | G35: Baseboard Heat
A36: 16 | B36: Water | E36: 3749 | G36: Water paid for by seller. Figure includes water, sewer, water softener, and city trash.
A37: 17 | B37: ALL COMMON COSTS
A38: 18 | B38: Accounting and Legal | E38: 150
A39: 19 | B39: RE Leasing Commissions
A40: 20 | B40: Advertising/Licenses/Permits
A41: 21 | B41: Supplies | E41: 152
A42: 22 | B42: Miscellaneous
B43: Contract Services:
A44: 23 | B44: Lawn & Snow | E44: 402
A45: 24 | B45: Garbage | E45: 0 | G45: Trash built into water and sewer bill.
A46: 25 | B46: Cleaning Payroll | E46: 0
A47: 26 | B47: Exterminator | E47: 647 | G47: No pest issues. Just preventitive.
A48: 27 | B48: Reserves
A49: 28
A50: 29 | B50: TOTAL OPERATING EXPENSES | E50: =SUM(E25:E49) -> 16892
A51: 30 | B51: NET OPERATING INCOME | E51: =E23-E50 -> 15044
A52: 31 | B52: Less:Annual Debt Service
A53: 35 | B53: CASH FLOW BEFORE TAXES | E53: =E51-E52 -> 15044 | H53: =E53/260000 -> 0.05786153846
B54: *Information deemed reliable but not
B55: guaranteed. Rates of return and cash flow
B56: are not warranted or guaranteed by seller
B57: or by broker. Past performance does not
B58: guaranty future results.

Sheet 4plex ProForma
C1: Name: | D1: 2120 4th Ave 4Plex | I1: ANNUAL PROPERTY OPERATING DATA
C2: Location: | D2: 2120 4th Ave, Marion, IA, 52302 | I2: Date:
B3: Type of Property: | C3: Multi-Family Property | H3: Purchase Price: | J3: 260000
C4: Size of Property: # Units: 4 | H4: Cost of Acquisition: | J4: 0
B5: Purpose: | C5: Owner's Statement | E5: Broker's Reconstructed | H5: Pricer Per Unit | J5: =J3/4 -> 65000
C6: Existing Financing | E6: Potential Financing | H6: Down Payment: 25% | J6: =J3*0.25 -> 65000
C7: Seller's Position | E7: Buyer's Position
C8: Forecast
B10: Existing | C10: Balance | D10: Payment | E10: #Pmts/Yr | F10: Interest | G10: Term
B11: 1st | J11: Dwelling Value
B12: 2nd | I12: Improvement
B13: 3rd
C14: Potential: | I14: TOTAL | K14: 1
B15: 1st
B16: 2nd
E17: $/sf or | G17: %
B18: ALL FIGURES ANNUAL | C18: $/unit | E18: of GOI | H18: Comments/Footnotes
A19: 1 | B19: POTENTIAL RENTAL INCOME | E19: 36000 | G19: Rents Stabalized at $750
A20: 2 | B20: Less: Vacancy & Cr Losses | E20: =E19*0.05 -> 1800 | F20: 0.05
A21: 3 | B21: EFFECTIVE RENTAL INCOME | E21: =E19-E20 -> 34200
A22: 4 | B22: Plus: Other Income | E22: 1800 | G22: Laundry and estimated water/trash RUB
A23: 5 | B23: GROSS OPERATING INCOME | E23: =E21+E22 -> 36000
B24: OPERATING EXPENSES:
A25: 6 | B25: Real Estate Taxes | E25: 4709
A26: 7 | B26: Personal Property Taxes
A27: 8 | B27: Property Insurance | E27: 1987
A28: 9 | B28: Off-site Management | E28: =E19*0.07 -> 2520 | F28: Spire Management Fee 7%
A29: 10 | B29: Management
A30: 11 | B30: Expenses / Benefits
A31: 12 | B31: Taxes / Workers' Comp
A32: 13 | B32: Repairs and Maintenance | E32: =0.1*E19 -> 3600 | F32: 0.1
B33: Utilities
A34: 14 | B34: Electric | E34: 961 | G34: Owner pays common electric.
A35: 15 | B35: Gas | E35: 0 | G35: No gas on property.
A36: 16 | B36: Water | E36: 3800 | G36: Water paid for by seller. Figure includes water, sewer, water softener, and city trash.
A37: 17 | B37: ALL COMMON COSTS
A38: 18 | B38: Accounting and Legal | E38: 150
A39: 19 | B39: RE Leasing Commissions
A40: 20 | B40: Advertising/Licenses/Permits
A41: 21 | B41: Supplies | E41: 152
A42: 22 | B42: Miscellaneous
B43: Contract Services:
A44: 23 | B44: Lawn & Snow | E44: 402
A45: 24 | B45: Garbage | E45: 0 | G45: Trash built into water and sewer bill.
A46: 25 | B46: Cleaning Payroll | E46: 0
A47: 26 | B47: Exterminator | E47: 0
A48: 27 | B48: Reserves
A49: 28
A50: 29 | B50: TOTAL OPERATING EXPENSES | E50: =SUM(E25:E49) -> 18281
A51: 30 | B51: NET OPERATING INCOME | E51: =E23-E50 -> 17719
A52: 31 | B52: Less:Annual Debt Service
A53: 35 | B53: CASH FLOW BEFORE TAXES | E53: =E51-E52 -> 17719
B54: *Information deemed reliable but not
B55: guaranteed. Rates of return and cash flow
B56: are not warranted or guaranteed by seller
B57: or by broker. Past performance does not
B58: guaranty future results.

Sheet 4plex ProForma Self-Managed
C1: Name: | D1: 2120 4th Ave 4Plex | I1: ANNUAL PROPERTY OPERATING DATA
C2: Location: | D2: 2120 4th Ave, Marion, IA, 52302 | I2: Date:
B3: Type of Property: | C3: Multi-Family Property | H3: Purchase Price: | J3: 260000
C4: Size of Property: # Units: 4 | H4: Cost of Acquisition: | J4: 0
B5: Purpose: | C5: Owner's Statement | E5: Broker's Reconstructed | H5: Pricer Per Unit | J5: =J3/4 -> 65000
C6: Existing Financing | E6: Potential Financing | H6: Down Payment: 25% | J6: =J3*0.25 -> 65000
C7: Seller's Position | E7: Buyer's Position
C8: Forecast
B10: Existing | C10: Balance | D10: Payment | E10: #Pmts/Yr | F10: Interest | G10: Term
B11: 1st | J11: Dwelling Value
B12: 2nd | I12: Improvement
B13: 3rd
C14: Potential: | I14: TOTAL | K14: 1
B15: 1st
B16: 2nd
E17: $/sf or | G17: %
B18: ALL FIGURES ANNUAL | C18: $/unit | E18: of GOI | H18: Comments/Footnotes
A19: 1 | B19: POTENTIAL RENTAL INCOME | E19: 36000 | G19: Rents Stabalized at $750
A20: 2 | B20: Less: Vacancy & Cr Losses | E20: =E19*0.05 -> 1800 | F20: 0.05
A21: 3 | B21: EFFECTIVE RENTAL INCOME | E21: =E19-E20 -> 34200
A22: 4 | B22: Plus: Other Income | E22: 1800 | G22: Laundry and estimated water/trash RUB
A23: 5 | B23: GROSS OPERATING INCOME | E23: =E21+E22 -> 36000
B24: OPERATING EXPENSES:
A25: 6 | B25: Real Estate Taxes | E25: 4709
A26: 7 | B26: Personal Property Taxes
A27: 8 | B27: Property Insurance | E27: 1987
A28: 9 | B28: Off-site Management | E28: 0
A29: 10 | B29: Management
A30: 11 | B30: Expenses / Benefits
A31: 12 | B31: Taxes / Workers' Comp
A32: 13 | B32: Repairs and Maintenance | E32: =0.1*E19 -> 3600 | F32: 0.1
B33: Utilities
A34: 14 | B34: Electric | E34: 961 | G34: Owner pays common electric.
A35: 15 | B35: Gas | E35: 0 | G35: No gas on property.
A36: 16 | B36: Water | E36: 3800 | G36: Water paid for by seller. Figure includes water, sewer, water softener, and city trash.
A37: 17 | B37: ALL COMMON COSTS
A38: 18 | B38: Accounting and Legal | E38: 150
A39: 19 | B39: RE Leasing Commissions
A40: 20 | B40: Advertising/Licenses/Permits
A41: 21 | B41: Supplies | E41: 152
A42: 22 | B42: Miscellaneous
B43: Contract Services:
A44: 23 | B44: Lawn & Snow | E44: 0
A45: 24 | B45: Garbage | E45: 0 | G45: Trash built into water and sewer bill.
A46: 25 | B46: Cleaning Payroll | E46: 0
A47: 26 | B47: Exterminator | E47: 0
A48: 27 | B48: Reserves
A49: 28
A50: 29 | B50: TOTAL OPERATING EXPENSES | E50: =SUM(E25:E49) -> 15359
A51: 30 | B51: NET OPERATING INCOME | E51: =E23-E50 -> 20641
A52: 31 | B52: Less:Annual Debt Service
A53: 35 | B53: CASH FLOW BEFORE TAXES | E53: =E51-E52 -> 20641
B54: *Information deemed reliable but not
B55: guaranteed. Rates of return and cash flow
B56: are not warranted or guaranteed by seller
B57: or by broker. Past performance does not
B58: guaranty future results.
